Workbook

Sheet Ejecucion 2025 fondo 0100
A4: Hospital General de Especialidades Mario Tolentino Dipp
A5: Año 2025
A6: Ejecución de Gasto y Aplicaciones financieras Fondo 0100
A7: En RD$
A9: DETALLE | B9: Presupuesto Modificado | C9: Presupuesto Modificado | D9: Gasto devengado
D10: Enero | E10: Febrero | F10: Marzo | G10: Abril | H10: Mayo | I10: Junio | J10: Julio | K10: Agosto | L10: Septiembre | M10: Octubre | N10: Noviembre | O10: Diciembre | P10: Total
A11: 2 - GASTOS
A12: 2.1 - REMUNERACIONES Y CONTRIBUCIONES | B12: =+B13+B14+B15+B16+B17 -> 419,944,134.00 | C12: =+C13+C14+C15+C16+C17 -> 0 | D12: =+D13+D14+D15+D16+D17 -> 30,571,977.20 | E12: 31,545,152.11 | F12: 33,207,465.58 | G12: 32,794,620.04 | H12: 33,759,711.24 | I12: 33,974,348.17 | J12: 38,532,554.43 | K12: 0 | L12: 0 | M12: 0 | N12: 0 | O12: 0 | P12: =+D12+E12+F12+G12+H12+I12+J12+K12+L12+M12+N12+O12 -> 234,385,828.77
A13: 2.1.1 - REMUNERACIONES | B13: 371,990,714.84 | D13: 26,226,727.22 | E13: 27,052,953.68 | F13: 28,494,953.36 | G13: 28,136,753.36 | H13: 28,974,032.77 | I13: 29,149,582.77 | J13: 33,083,831.38 | P13: 201,118,834.54
A14: 2.1.2 - SOBRESUELDOS | B14: 2,731,047.16 | D14: 336,163.74 | E14: 356,489.62 | F14: 356,486.62 | G14: 356,489.62 | H14: 356,489.62 | I14: 368,991.26 | J14: 390,589.75 | P14: 2,521,700.23
A15: 2.1.3 - DIETAS Y GASTOS DE REPRESENTACIÓN | P15: 0.00
A16: 2.1.4 - GRATIFICACIONES Y BONIFICACIONES | P16: 0.00
A17: 2.1.5 - CONTRIBUCIONES A LA SEGURIDAD SOCIAL | B17: 45,222,372.00 | D17: 4,009,086.24 | E17: 4,135,708.81 | F17: 4,356,025.60 | G17: 4,301,377.06 | H17: 4,429,188.85 | I17: 4,455,774.14 | J17: 5,058,133.30 | P17: 30,745,294.00
A18: 2.2 - CONTRATACIÓN DE SERVICIOS | B18: =+B19+B20+B21+B22+B23+B24+B25+B26+B27 -> 35,013,717.01 | C18: =+C19+C20+C21+C22+C23+C24+C25+C26+C27 -> 0 | D18: 764,382.52 | E18: 585,763.73 | F18: 126,110.00 | G18: 1,354,060.74 | H18: 431,129.53 | I18: =+I19+I20+I21+I22+I23+I24+I25+I26+I27 -> 1,013,163.10 | J18: =+J19+J20+J21+J22+J23+J24+J25+J26+J27 -> 1,243,889.41 | K18: =+K19+K20+K21+K22+K23+K24+K25+K26+K27 -> 0 | L18: 0 | M18: 0 | N18: 0 | O18: 0 | P18: 5,518,499.03
A19: 2.2.1 - SERVICIOS BÁSICOS | B19: 7,399,892.00 | D19: 125,000.00 | F19: 50,000.00 | H19: 25,000.00 | I19: 175,000.00 | J19: 325,000.00 | P19: 700,000.00
A20: 2.2.2 - PUBLICIDAD, IMPRESIÓN Y ENCUADERNACIÓN | B20: 1,254,000.00 | I20: 240,720 | P20: 240,720.00
A21: 2.2.3 - VIÁTICOS | P21: 0.00
A22: 2.2.4 - TRANSPORTE Y ALMACENAJE | B22: 1,122,000.00 | E22: 118,000.00 | P22: 118,000.00
A23: 2.2.5 - ALQUILERES Y RENTAS | P23: 0.00
A24: 2.2.6 - SEGUROS | P24: 0.00
A25: 2.2.7 - SERVICIOS DE CONSERVACIÓN, REPARACIONES MENORES E INSTALACIONES TEMPORALES | B25: 11,808,827.75 | D25: 235,000.02 | E25: 232,863.49 | F25: 76,110.00 | G25: 1,354,060.74 | H25: 54,870.00 | I25: 63,012.00 | J25: 260,155.60 | P25: 2,276,071.85
A26: 2.2.8 - OTROS SERVICIOS NO INCLUIDOS EN CONCEPTOS ANTERIORES | B26: 9,692,579.76 | D26: 140,800.00 | E26: 234,900.24 | H26: 351,259.53 | I26: 241,750.00 | J26: 658,733.81 | P26: 1,627,443.58
A27: 2.2.9 - OTRAS CONTRATACIONES DE SERVICIOS | B27: 3,736,417.50 | D27: 263,582.50 | I27: 292,681.10 | P27: 556,263.60
A28: 2.3 - MATERIALES Y SUMINISTROS | B28: =+B29+B30+B31+B32+B33+B34+B35+B36+B37 -> 126,005,370.78 | C28: =+C29+C30+C31+C32+C33+C34+C35+C36+C37 -> 0 | D28: 4,441,707.92 | E28: =+E29+E30+E31+E32+E33+E34+E35+E36+E37+E40 -> 4,317,702.95 | F28: =+F29+F30+F31+F32+F33+F34+F35+F36+F37+F40 -> 3,517,774.14 | G28: =+G29+G30+G31+G32+G33+G34+G35+G36+G37+G40 -> 4,134,913.20 | H28: =+H29+H30+H31+H32+H33+H34+H35+H36+H37+H40 -> 4,728,036.18 | I28: 26,010,423.21 | J28: 8,885,432.52 | K28: 0 | L28: 0 | M28: 0 | N28: 0 | O28: =+O29+O30+O31+O32+O33+O34+O35+O36+O37+O40 -> 0 | P28: 56,035,990.12
A29: 2.3.1 - ALIMENTOS Y PRODUCTOS AGROFORESTALES | B29: 18,169,325.93 | D29: 2,220,853.96 | E29: 330,546.17 | G29: 787,700.00 | H29: 1,289,427.90 | I29: 3,042,228.90 | J29: 2,068,002.02 | P29: 9,738,758.95
A30: 2.3.2 - TEXTILES Y VESTUARIOS | B30: 1,000,000.00 | H30: 42,451.20 | I30: 86,220.00 | J30: 28,504.08 | P30: 157,175.28
A31: 2.3.3 - PRODUCTOS DE PAPEL, CARTÓN E IMPRESOS | B31: 7,485,210.00 | D31: 23,000.00 | E31: 177,000.00 | F31: 47,790.00 | I31: 243,131.92 | J31: 475,651.96 | P31: =+D31+E31+F31+G31+H31+I31+J31+K31+L31+M31+N31+O31 -> 966,573.88
A32: 2.3.4 - PRODUCTOS FARMACÉUTICOS | B32: 30,400,454.00 | D32: 47,790.00 | E32: 1,389,162.00 | F32: 1,632,124.00 | G32: 1,392,520.00 | H32: 2,224,816.20 | I32: 12,944,358.87 | J32: 1,732,529.61 | P32: =+D32+E32+F32+G32+H32+I32+J32+K32+L32+M32+N32+O32 -> 21,363,300.68
A33: 2.3.5 - PRODUCTOS DE CUERO, CAUCHO Y PLÁSTICO | B33: 3,770,398.30 | D33: 380,830.00 | P33: 380,830.00
A34: 2.3.6 - PRODUCTOS DE MINERALES, METÁLICOS Y NO METÁLICOS | B34: 1,199,918.20 | E34: 601.80 | P34: 601.80
A35: 2.3.7 - COMBUSTIBLES, LUBRICANTES, PRODUCTOS QUÍMICOS Y CONEXOS | B35: 36,985,209.50 | E35: 960,000.00 | F35: 399,200.00 | G35: 1,628,412.00 | H35: 565,810.00 | I35: 2,093,986.56 | J35: 1,821,774.61 | P35: 7,469,183.17
A36: 2.3.8 - GASTOS QUE SE ASIGNARÁN DURANTE EL EJERCICIO (ART. 32 Y 33 LEY 423-06) | P36: 0.00
A37: 2.3.9 - PRODUCTOS Y ÚTILES VARIOS | B37: 26,994,854.85 | D37: 1,769,233.96 | E37: 1,460,392.98 | F37: 1,438,660 | G37: 326,281.20 | H37: 605,530.88 | I37: 7,600,496.96 | J37: 2,758,970.24 | P37: 15,959,566.36
A38: 2.4 - TRANSFERENCIAS CORRIENTES | B38: =+B39+B40+B41+B42+B43+B44+B45+B45 -> 0 | C38: =+C39+C40+C41+C42+C43+C44+C45+C45 -> 0 | F38: 0 | G38: 0 | P38: =+D38+E38+F38+G38+H38+I38+J38+K38+L38+M38+N38+O38 -> 0.00
A39: 2.4.1 - TRANSFERENCIAS CORRIENTES AL SECTOR PRIVADO | P39: 0.00
A40: 2.4.2 - TRANSFERENCIAS CORRIENTES AL GOBIERNO GENERAL NACIONAL | P40: 0.00
A41: 2.4.3 - TRANSFERENCIAS CORRIENTES A GOBIERNOS GENERALES LOCALES | P41: 0.00
A42: 2.4.4 - TRANSFERENCIAS CORRIENTES A EMPRESAS PÚBLICAS NO FINANCIERAS | P42: 0.00
A43: 2.4.5 - TRANSFERENCIAS CORRIENTES A INSTITUCIONES PÚBLICAS FINANCIERAS | P43: 0.00
A44: 2.4.7 - TRANSFERENCIAS CORRIENTES AL SECTOR EXTERNO | P44: 0.00
A45: 2.4.9 - TRANSFERENCIAS CORRIENTES A OTRAS INSTITUCIONES PÚBLICAS | P45: 0.00
A46: 2.5 - TRANSFERENCIAS DE CAPITAL | P46: 0.00
A47: 2.5.1 - TRANSFERENCIAS DE CAPITAL AL SECTOR PRIVADO | P47: 0.00
A48: 2.5.2 - TRANSFERENCIAS DE CAPITAL AL GOBIERNO GENERAL NACIONAL | P48: 0.00
A49: 2.5.3 - TRANSFERENCIAS DE CAPITAL A GOBIERNOS GENERALES LOCALES | P49: 0.00
A50: 2.5.4 - TRANSFERENCIAS DE CAPITAL A EMPRESAS PÚBLICAS NO FINANCIERAS | P50: 0.00
A51: 2.5.5 - TRANSFERENCIAS DE CAPITAL A INSTITUCIONES PÚBLICAS FINANCIERAS | P51: 0.00
A52: 2.5.6 - TRANSFERENCIAS DE CAPITAL AL SECTOR EXTERNO | P52: 0.00
A53: 2.5.9 - TRANSFERENCIAS DE CAPITAL A OTRAS INSTITUCIONES PÚBLICAS | P53: 0.00
A54: 2.6 - BIENES MUEBLES, INMUEBLES E INTANGIBLES | B54: =+B55+B56+B57+B58+B59+B60+B61+B62+B63 -> 13,870,480.00 | C54: =+C55+C56+C57+C58+C59+C60+C61+C62+C63 -> 0 | D54: 0 | E54: 0 | F54: =+F55+F56+F57+F58+F59+F60+F61+F62+F63 -> 0 | G54: =+G55+G56+G57+G58+G59+G60+G61+G62+G63 -> 0 | H54: =+H55+H56+H57+H58+H59+H60+H61+H62+H63 -> 0 | I54: 0 | J54: 2,118,066.67 | K54: 0 | L54: 0 | M54: 0 | N54: 0 | O54: 0 | P54: =+D54+E54+F54+G54+H54+I54+J54+K54+L54+M54+N54+O54 -> 2,118,066.67
A55: 2.6.1 - MOBILIARIO Y EQUIPO | B55: 200,000.00 | J55: 1,839,620.76 | P55: 1,839,620.76
A56: 2.6.2 - MOBILIARIO Y EQUIPO EDUCACIONAL Y RECREATIVO | P56: 0.00
A57: 2.6.3 - EQUIPO E INSTRUMENTAL, CIENTÍFICO Y LABORATORIO | B57: 12,670,480.00 | J57: 267,145.72 | P57: 267,145.72
A58: 2.6.4 - VEHÍCULOS Y EQUIPO DE TRANSPORTE, TRACCIÓN Y ELEVACIÓN | P58: 0.00
A59: 2.6.5 - MAQUINARIA, OTROS EQUIPOS Y HERRAMIENTAS | B59: 1,000,000.00 | P59: 0.00
A60: 2.6.6 - EQUIPOS DE DEFENSA Y SEGURIDAD | P60: 0.00
A61: 2.6.7 - ACTIVOS BIÓLOGICOS CULTIVABLES | P61: 0.00
A62: 2.6.8 - BIENES INTANGIBLES | P62: 0.00
A63: 2.6.9 - EDIFICIOS, ESTRUCTURAS, TIERRAS, TERRENOS Y OBJETOS DE VALOR | J63: 11,300.19 | P63: 11,300.19
A64: 2.7 - OBRAS | B64: =+B65+B66+B67+B68 -> 0 | C64: =+C65+C66+C67+C68 -> 0 | D64: 0 | E64: 0 | F64: 0 | G64: 0 | P64: 0.00
A65: 2.7.1 - OBRAS EN EDIFICACIONES | P65: 0.00
A66: 2.7.2 - INFRAESTRUCTURA | P66: 0.00
A67: 2.7.3 - CONSTRUCCIONES EN BIENES CONCESIONADOS | P67: 0.00
A68: 2.7.4 - GASTOS QUE SE ASIGNARÁN DURANTE EL EJERCICIO PARA INVERSIÓN (ART. 32 Y 33 LEY 423-06) | P68: 0.00
A69: 2.8 - ADQUISICION DE ACTIVOS FINANCIEROS CON FINES DE POLÍTICA | P69: 0.00
A70: 2.8.1 - CONCESIÓN DE PRESTAMOS | P70: 0.00
A71: 2.8.2 - ADQUISICIÓN DE TÍTULOS VALORES REPRESENTATIVOS DE DEUDA | P71: 0.00
A72: 2.9 - GASTOS FINANCIEROS | P72: =+D72+E72+F72+G72+H72+I72+J72+K72+L72+M72+N72+O72 -> 0.00
A73: 2.9.1 - INTERESES DE LA DEUDA PÚBLICA INTERNA | P73: =+D73+E73+F73+G73+H73+I73+J73+K73+L73+M73+N73+O73 -> 0.00
A74: 2.9.2 - INTERESES DE LA DEUDA PUBLICA EXTERNA | P74: 0.00
A75: 2.9.4 - COMISIONES Y OTROS GASTOS BANCARIOS DE LA DEUDA PÚBLICA | P75: 0.00
A76: 4 - APLICACIONES FINANCIERAS | P76: =+D76+E76+F76+G76+H76+I76+J76+K76+L76+M76+N76+O76 -> 0.00
A77: 4.1 - INCREMENTO DE ACTIVOS FINANCIEROS | P77: 0.00
A78: 4.1.1 - INCREMENTO DE ACTIVOS FINANCIEROS CORRIENTES | P78: 0.00
A79: 4.1.2 - INCREMENTO DE ACTIVOS FINANCIEROS NO CORRIENTES | P79: 0.00
A80: 4.2 - DISMINUCIÓN DE PASIVOS | P80: 0.00
A81: 4.2.1 - DISMINUCIÓN DE PASIVOS CORRIENTES | P81: 0.00
A82: 4.2.2 - DISMINUCIÓN DE PASIVOS NO CORRIENTES | P82: 0.00
A83: 4.3 - DISMINUCIÓN DE FONDOS DE TERCEROS | I83: 0 | J83: 0 | K83: 0 | M83: 0 | N83: 0 | O83: 0 | P83: 0.00
A84: 4.3.5 - DISMINUCIÓN DEPÓSITOS FONDOS DE TERCEROS | I84: 0 | J84: 0 | K84: 0 | N84: 0 | O84: 0 | P84: 0.00
A85: Total general | B85: =+B12+B18+B28+B38+B54+B64 -> 594,833,701.8 | C85: =+C12+C18+C28+C38+C54+C64 -> 0 | D85: =+D12+D18+D28+D38+D54+D64 -> 35,778,067.6 | E85: 36,448,618.8 | F85: =+F12+F18+F28+F38+F54+F64 -> 36,851,349.7 | G85: 38,283,594.0 | H85: 38,918,877.0 | I85: 60,997,934.5 | J85: 50,779,943.0 | K85: 0 | L85: 0 | M85: 0 | N85: 0 | O85: 0 | P85: =+D85+E85+F85+G85+H85+I85+J85+K85+L85+M85+N85+O85 -> 298,058,384.6
A95: Preparado por: | E95: Revisado Por: | J95: Autorizado por:
A96: Yadira Garcia | E96: Kelvin Segura | J96: Miguel A. Guzman
A97: Analista Financiero | E97: Coordinador Admistrativo-Financiero | J97: Director General
